[Event "Late-Titled-Tuesday-Blitz-March-05-2024"]
[Site "Chess.com"]
[Date "2024.03.05"]
[Round "2"]
[White "stollenmonster"]
[Black "rodp92"]
[Result "0-1"]
[WhiteElo "2868"]
[BlackElo "2498"]
[TimeControl "180+1"]
[EndTime "14:18:01 PST"]
[Termination "rodp92 won by resignation"]

1. e4 {[%clk 0:03:00.9]} 1... g6 {[%clk 0:03:00.2]} 2. g3 {[%clk 0:03:00.3]}
2... c6 {[%clk 0:03:00.6]} 3. Bg2 {[%clk 0:03:00.9]} 3... d5 {[%clk 0:03:00.6]}
4. exd5 {[%clk 0:03:01.3]} 4... cxd5 {[%clk 0:03:01.5]} 5. d4 {[%clk 0:03:01.8]}
5... Nf6 {[%clk 0:03:01.6]} 6. Ne2 {[%clk 0:03:02.2]} 6... Nc6 {[%clk
0:03:01.9]} 7. c3 {[%clk 0:03:02.8]} 7... Bg7 {[%clk 0:03:01.9]} 8. h3 {[%clk
0:03:03.2]} 8... O-O {[%clk 0:03:01]} 9. O-O {[%clk 0:03:03.8]} 9... e6 {[%clk
0:02:52.2]} 10. Nf4 {[%clk 0:03:04]} 10... b5 {[%clk 0:02:46.8]} 11. Nd3 {[%clk
0:03:03.7]} 11... a5 {[%clk 0:02:42.7]} 12. a3 {[%clk 0:03:01.1]} 12... Qb6
{[%clk 0:02:36.6]} 13. Bf4 {[%clk 0:02:58.3]} 13... Ba6 {[%clk 0:02:28.1]} 14.
Nc5 {[%clk 0:02:50.6]} 14... b4 {[%clk 0:02:24.7]} 15. Nxa6 {[%clk 0:02:50.3]}
15... Rxa6 {[%clk 0:02:17]} 16. Nd2 {[%clk 0:02:50.6]} 16... bxc3 {[%clk
0:02:09.7]} 17. bxc3 {[%clk 0:02:51.5]} 17... a4 {[%clk 0:02:09]} 18. Rb1 {[%clk
0:02:49.6]} 18... Qa7 {[%clk 0:02:07.1]} 19. Bd6 {[%clk 0:02:48.4]} 19... Rc8
{[%clk 0:02:03.6]} 20. Qe2 {[%clk 0:02:41.8]} 20... Nxd4 {[%clk 0:01:50.9]} 21.
cxd4 {[%clk 0:02:32.5]} 21... Rxd6 {[%clk 0:01:50.8]} 22. Rb4 {[%clk 0:02:29.1]}
22... Rb6 {[%clk 0:01:46.6]} 23. Rfb1 {[%clk 0:02:27]} 23... Rcb8 {[%clk
0:01:46.3]} 24. Rxb6 {[%clk 0:02:20]} 24... Rxb6 {[%clk 0:01:47.2]} 25. Rc1
{[%clk 0:02:18.6]} 25... Rb8 {[%clk 0:01:41.7]} 26. Nf3 {[%clk 0:02:18.5]} 26...
Ne4 {[%clk 0:01:40.5]} 27. Qe3 {[%clk 0:02:03.7]} 27... h6 {[%clk 0:01:39.9]}
28. Qf4 {[%clk 0:01:59.5]} 28... g5 {[%clk 0:01:32.9]} 29. Qe3 {[%clk 0:01:45]}
29... Rb3 {[%clk 0:01:30.3]} 30. Rc8+ {[%clk 0:01:44.3]} 30... Kh7 {[%clk
0:01:29.6]} 31. Qe2 {[%clk 0:01:10.1]} 31... Bxd4 {[%clk 0:01:26.8]} 32. Qc2
{[%clk 0:00:35.5]} 32... Rb2 {[%clk 0:00:52.3]} 33. Nxg5+ {[%clk 0:00:34.2]}
33... hxg5 {[%clk 0:00:42.3]} 34. Bxe4+ {[%clk 0:00:34.1]} 34... dxe4 {[%clk
0:00:42.5]} 35. Qxe4+ {[%clk 0:00:30.8]} 35... Kg7 {[%clk 0:00:42.3]} 36. h4
{[%clk 0:00:20.9]} 36... Rxf2 {[%clk 0:00:35.3]} 37. Kh1 {[%clk 0:00:19]} 37...
Bf6 {[%clk 0:00:19.8]} 38. hxg5 {[%clk 0:00:18.3]} 38... Rf1+ {[%clk 0:00:19.7]}
39. Kg2 {[%clk 0:00:17.8]} 39... Qf2+ {[%clk 0:00:17.5]} 40. Kh3 {[%clk
0:00:17.7]} 40... Bxg5 {[%clk 0:00:16.6]} 41. Qe5+ {[%clk 0:00:17.4]} 41... Bf6
{[%clk 0:00:16.1]} 42. Qe4 {[%clk 0:00:17.2]} 42... Qf5+ {[%clk 0:00:15.4]} 43.
Qxf5 {[%clk 0:00:17.4]} 43... Rxf5 {[%clk 0:00:15.9]} 44. Rc4 {[%clk 0:00:17.4]}
44... Ra5 {[%clk 0:00:15.6]} 45. Rg4+ {[%clk 0:00:17.3]} 45... Kf8 {[%clk
0:00:15.6]} 46. Rc4 {[%clk 0:00:18.2]} 46... Bb2 {[%clk 0:00:14.7]} 0-1

[Event "Late-Titled-Tuesday-Blitz-March-05-2024"]
[Site "Chess.com"]
[Date "2024.03.05"]
[Round "2"]
[White "fandebobbyfischer"]
[Black "norwaytoadog"]
[Result "1-0"]
[WhiteElo "2668"]
[BlackElo "2269"]
[TimeControl "180+1"]
[EndTime "14:18:03 PST"]
[Termination "fandebobbyfischer won on time"]

1. e4 {[%clk 0:03:00.9]} 1... c5 {[%clk 0:02:59.2]} 2. Nf3 {[%clk 0:03:00.9]}
2... Nc6 {[%clk 0:02:59.4]} 3. c3 {[%clk 0:02:59.3]} 3... d5 {[%clk 0:02:58.2]}
4. exd5 {[%clk 0:03:00.2]} 4... Qxd5 {[%clk 0:02:58.3]} 5. d4 {[%clk 0:03:01.1]}
5... Bg4 {[%clk 0:02:58.3]} 6. Be2 {[%clk 0:03:01.2]} 6... cxd4 {[%clk
0:02:58.3]} 7. cxd4 {[%clk 0:03:01.3]} 7... e6 {[%clk 0:02:58.6]} 8. O-O {[%clk
0:03:01.2]} 8... Nf6 {[%clk 0:02:58.1]} 9. Nc3 {[%clk 0:03:01.7]} 9... Qa5
{[%clk 0:02:58.1]} 10. Be3 {[%clk 0:03:00.9]} 10... Bd6 {[%clk 0:02:56]} 11. h3
{[%clk 0:02:59.2]} 11... Bh5 {[%clk 0:02:54.6]} 12. a3 {[%clk 0:02:59.1]} 12...
O-O {[%clk 0:02:50.3]} 13. Qb3 {[%clk 0:02:58]} 13... Rab8 {[%clk 0:02:38.9]}
14. Rac1 {[%clk 0:02:58.4]} 14... a6 {[%clk 0:02:37.7]} 15. Rfd1 {[%clk
0:02:58.5]} 15... Ne7 {[%clk 0:02:35.1]} 16. Bd2 {[%clk 0:01:49.4]} 16... Qd8
{[%clk 0:02:24.7]} 17. Ne5 {[%clk 0:01:48.7]} 17... Bxe2 {[%clk 0:02:20]} 18.
Nxe2 {[%clk 0:01:48.5]} 18... Ned5 {[%clk 0:02:13.4]} 19. Nc4 {[%clk 0:01:46.8]}
19... Bc7 {[%clk 0:02:07.8]} 20. g3 {[%clk 0:01:43.2]} 20... Ne4 {[%clk
0:01:59.2]} 21. Be1 {[%clk 0:01:43.7]} 21... Qg5 {[%clk 0:01:50.5]} 22. Qf3
{[%clk 0:01:38.3]} 22... Qg6 {[%clk 0:01:39.6]} 23. Qg2 {[%clk 0:01:15.5]} 23...
h5 {[%clk 0:01:16.6]} 24. Ne5 {[%clk 0:01:11.9]} 24... Bxe5 {[%clk 0:01:11.6]}
25. dxe5 {[%clk 0:01:12.8]} 25... Rbc8 {[%clk 0:01:01.1]} 26. Nd4 {[%clk
0:01:08.6]} 26... h4 {[%clk 0:00:50.1]} 27. gxh4 {[%clk 0:01:01.2]} 27... Rxc1
{[%clk 0:00:32]} 28. Rxc1 {[%clk 0:00:57.8]} 28... Qh6 {[%clk 0:00:29.9]} 29.
Rc4 {[%clk 0:00:54.8]} 29... b5 {[%clk 0:00:27]} 30. Rc6 {[%clk 0:00:50.2]}
30... Nd2 {[%clk 0:00:13.3]} 31. Qg5 {[%clk 0:00:45.3]} 31... Nc4 {[%clk
0:00:10.7]} 32. Qxh6 {[%clk 0:00:43.7]} 32... gxh6 {[%clk 0:00:10.9]} 33. b3
{[%clk 0:00:39.2]} 33... Nxe5 {[%clk 0:00:10.7]} 34. Rxa6 {[%clk 0:00:38.2]}
34... Kh7 {[%clk 0:00:10.4]} 35. Nxb5 {[%clk 0:00:37.7]} 35... Rg8+ {[%clk
0:00:10]} 36. Kf1 {[%clk 0:00:38.4]} 36... Nf3 {[%clk 0:00:09.7]} 37. Ra7 {[%clk
0:00:32.2]} 37... Nf4 {[%clk 0:00:08.9]} 38. Rxf7+ {[%clk 0:00:31.8]} 38... Kh8
{[%clk 0:00:09.1]} 39. Rxf4 {[%clk 0:00:32.7]} 39... Rg1+ {[%clk 0:00:06.4]} 40.
Ke2 {[%clk 0:00:33.1]} 40... Nxe1 {[%clk 0:00:04.1]} 41. Rg4 {[%clk 0:00:33.6]}
41... Rh1 {[%clk 0:00:02.8]} 42. Nd4 {[%clk 0:00:34.1]} 42... e5 {[%clk
0:00:02.2]} 43. Nc6 {[%clk 0:00:28.8]} 43... Nc2 {[%clk 0:00:01.3]} 44. Nxe5
{[%clk 0:00:28.8]} 1-0

[Event "Late-Titled-Tuesday-Blitz-March-05-2024"]
[Site "Chess.com"]
[Date "2024.03.05"]
[Round "2"]
[White "Schattman"]
[Black "Penafiel-Josselyne02"]
[Result "1-0"]
[WhiteElo "2435"]
[BlackElo "2043"]
[TimeControl "180+1"]
[EndTime "14:18:10 PST"]
[Termination "Schattman won on time"]

1. f4 {[%clk 0:02:59.7]} 1... Nf6 {[%clk 0:02:57.2]} 2. Nf3 {[%clk 0:02:58.1]}
2... g6 {[%clk 0:02:56.5]} 3. d3 {[%clk 0:02:58.3]} 3... d6 {[%clk 0:02:39.5]}
4. e4 {[%clk 0:02:56.5]} 4... c5 {[%clk 0:02:39.2]} 5. g3 {[%clk 0:02:55]} 5...
Bg7 {[%clk 0:02:38.9]} 6. Bg2 {[%clk 0:02:55.3]} 6... O-O {[%clk 0:02:38.9]} 7.
O-O {[%clk 0:02:55.5]} 7... Nc6 {[%clk 0:02:38.6]} 8. c3 {[%clk 0:02:55.6]} 8...
Rb8 {[%clk 0:02:30.4]} 9. a4 {[%clk 0:02:54.2]} 9... a6 {[%clk 0:02:30.3]} 10.
h3 {[%clk 0:02:54.6]} 10... b5 {[%clk 0:02:29.9]} 11. axb5 {[%clk 0:02:54.6]}
11... axb5 {[%clk 0:02:30.8]} 12. Be3 {[%clk 0:02:53.3]} 12... b4 {[%clk
0:02:26.4]} 13. Qe2 {[%clk 0:02:50.9]} 13... bxc3 {[%clk 0:02:24.1]} 14. bxc3
{[%clk 0:02:51.3]} 14... Nd7 {[%clk 0:02:09.2]} 15. d4 {[%clk 0:02:43.5]} 15...
cxd4 {[%clk 0:02:07.9]} 16. cxd4 {[%clk 0:02:43.4]} 16... e5 {[%clk 0:01:52]}
17. fxe5 {[%clk 0:02:34.2]} 17... dxe5 {[%clk 0:01:51.3]} 18. d5 {[%clk
0:02:34.6]} 18... Nd4 {[%clk 0:01:51.7]} 19. Qf2 {[%clk 0:02:05.3]} 19... Nxf3+
{[%clk 0:00:54.4]} 20. Qxf3 {[%clk 0:02:05.2]} 20... Rb3 {[%clk 0:00:43.9]} 21.
Nd2 {[%clk 0:02:03.4]} 21... Rc3 {[%clk 0:00:23.8]} 22. Qe2 {[%clk 0:01:47.3]}
22... Nc5 {[%clk 0:00:17.4]} 23. Kh2 {[%clk 0:01:46.4]} 23... Qd6 {[%clk
0:00:14.9]} 24. Rac1 {[%clk 0:01:43.7]} 24... Ba6 {[%clk 0:00:13.2]} 25. Rxc3
{[%clk 0:01:38.1]} 25... Bxe2 {[%clk 0:00:12.6]} 26. Bxc5 {[%clk 0:01:34]} 26...
Qc7 {[%clk 0:00:10.7]} 27. Rfc1 {[%clk 0:01:26]} 27... Qa5 {[%clk 0:00:06]} 28.
Nb3 {[%clk 0:01:16]} 28... Qa2 {[%clk 0:00:05.4]} 29. R1c2 {[%clk 0:01:13.8]}
29... Qa6 {[%clk 0:00:05.4]} 30. Bxf8 {[%clk 0:01:10.9]} 30... Bxf8 {[%clk
0:00:06.3]} 31. Nc5 {[%clk 0:01:10.9]} 31... Bxc5 {[%clk 0:00:05.6]} 32. Rxc5
{[%clk 0:01:11.8]} 32... Bd3 {[%clk 0:00:05]} 33. R2c3 {[%clk 0:01:09.5]} 33...
Bf1 {[%clk 0:00:05.1]} 34. Rc6 {[%clk 0:01:05.9]} 34... Qe2 {[%clk 0:00:03.1]}
35. Rc2 {[%clk 0:01:02.9]} 35... Qb5 {[%clk 0:00:02.5]} 36. d6 {[%clk
0:00:54.1]} 36... Bxg2 {[%clk 0:00:02.1]} 37. Kxg2 {[%clk 0:00:54.6]} 37... Kg7
{[%clk 0:00:02.1]} 38. d7 {[%clk 0:00:54.2]} 38... Qd3 {[%clk 0:00:02.4]} 39.
Rc7 {[%clk 0:00:51.8]} 39... Qxe4+ {[%clk 0:00:02.5]} 40. Kh2 {[%clk 0:00:52.1]}
40... Qd3 {[%clk 0:00:02.5]} 41. Rf2 {[%clk 0:00:43.3]} 41... e4 {[%clk
0:00:02.3]} 42. d8=Q {[%clk 0:00:37.3]} 42... Qxd8 {[%clk 0:00:02.3]} 43. Rfxf7+
{[%clk 0:00:37.2]} 43... Kg8 {[%clk 0:00:02]} 44. Rg7+ {[%clk 0:00:36.6]} 44...
Kf8 {[%clk 0:00:02.3]} 45. Rgf7+ {[%clk 0:00:29.8]} 45... Ke8 {[%clk 0:00:01.3]}
46. h4 {[%clk 0:00:21.4]} 46... Qd2+ {[%clk 0:00:01.5]} 47. Kh3 {[%clk
0:00:21.8]} 47... Qd8 {[%clk 0:00:01.8]} 48. Rxh7 {[%clk 0:00:20.5]} 1-0

[Event "Late-Titled-Tuesday-Blitz-March-05-2024"]
[Site "Chess.com"]
[Date "2024.03.05"]
[Round "2"]
[White "Shahdad2007"]
[Black "Igor_Lysyj"]
[Result "0-1"]
[WhiteElo "2570"]
[BlackElo "2826"]
[TimeControl "180+1"]
[EndTime "14:18:11 PST"]
[Termination "Igor_Lysyj won by resignation"]

1. Nf3 {[%clk 0:03:00.9]} 1... d5 {[%clk 0:02:58.7]} 2. c4 {[%clk 0:03:01.1]}
2... e6 {[%clk 0:02:58.4]} 3. g3 {[%clk 0:03:00.4]} 3... Nf6 {[%clk 0:02:58.2]}
4. Bg2 {[%clk 0:03:00.3]} 4... Be7 {[%clk 0:02:58.5]} 5. O-O {[%clk 0:03:00.5]}
5... O-O {[%clk 0:02:58.6]} 6. d4 {[%clk 0:03:01.1]} 6... dxc4 {[%clk
0:02:58.9]} 7. Na3 {[%clk 0:02:58.8]} 7... Bxa3 {[%clk 0:02:57.1]} 8. bxa3
{[%clk 0:02:59.7]} 8... Bd7 {[%clk 0:02:57.4]} 9. a4 {[%clk 0:02:58.9]} 9... Bc6
{[%clk 0:02:55.7]} 10. Ba3 {[%clk 0:02:56.8]} 10... Re8 {[%clk 0:02:54.8]} 11.
Qc2 {[%clk 0:02:56.3]} 11... Nbd7 {[%clk 0:02:52.2]} 12. Rac1 {[%clk 0:02:55]}
12... a5 {[%clk 0:02:44.8]} 13. Qxc4 {[%clk 0:02:50.5]} 13... Nb6 {[%clk
0:02:43.5]} 14. Qc3 {[%clk 0:02:49.3]} 14... Nxa4 {[%clk 0:02:42.7]} 15. Qb3
{[%clk 0:02:49]} 15... Nb6 {[%clk 0:02:24.6]} 16. Rxc6 {[%clk 0:02:48.2]} 16...
bxc6 {[%clk 0:02:22.7]} 17. Ne5 {[%clk 0:02:48.3]} 17... Qxd4 {[%clk 0:02:22.1]}
18. Nxc6 {[%clk 0:02:47.9]} 18... Qc4 {[%clk 0:02:08.9]} 19. Ne7+ {[%clk
0:02:43.8]} 19... Rxe7 {[%clk 0:02:08.3]} 20. Bxe7 {[%clk 0:02:44.3]} 20... Qxb3
{[%clk 0:01:59.8]} 21. axb3 {[%clk 0:02:44.1]} 21... Rb8 {[%clk 0:01:56.8]} 22.
Ra1 {[%clk 0:02:40.3]} 22... Nfd5 {[%clk 0:01:50]} 23. Bc5 {[%clk 0:02:35.9]}
23... Ra8 {[%clk 0:01:42]} 24. e4 {[%clk 0:02:25.2]} 24... Nb4 {[%clk
0:01:38.5]} 25. e5 {[%clk 0:02:23.3]} 25... N4d5 {[%clk 0:01:32.8]} 26. f4
{[%clk 0:02:08.7]} 26... h5 {[%clk 0:01:30.7]} 27. h4 {[%clk 0:02:06.7]} 27...
g6 {[%clk 0:01:31]} 28. Kf2 {[%clk 0:02:05.6]} 28... Nd7 {[%clk 0:01:30]} 29.
Bb4 {[%clk 0:01:47.8]} 29... Rb8 {[%clk 0:01:12.2]} 30. Bxa5 {[%clk 0:01:47.3]}
30... Rxb3 {[%clk 0:01:01.1]} 31. Bxd5 {[%clk 0:01:47.5]} 31... exd5 {[%clk
0:01:01.3]} 32. Bxc7 {[%clk 0:01:48.1]} 32... Nc5 {[%clk 0:01:01.3]} 33. Ra8+
{[%clk 0:01:46.9]} 33... Kh7 {[%clk 0:01:00.3]} 34. e6 {[%clk 0:01:27.7]} 34...
Nxe6 {[%clk 0:00:47.6]} 35. Be5 {[%clk 0:01:27.3]} 35... Ng7 {[%clk 0:00:47.5]}
36. Ra7 {[%clk 0:01:23.5]} 36... Nf5 {[%clk 0:00:46]} 37. Rxf7+ {[%clk
0:01:22.5]} 37... Kg8 {[%clk 0:00:46.2]} 38. Rd7 {[%clk 0:01:22.7]} 38... Rxg3
{[%clk 0:00:42.7]} 39. Rxd5 {[%clk 0:01:19.6]} 39... Rg4 {[%clk 0:00:42.7]} 40.
Ra5 {[%clk 0:01:09.4]} 40... Nxh4 {[%clk 0:00:40.6]} 41. Ra6 {[%clk 0:01:07.4]}
41... Nf5 {[%clk 0:00:39.9]} 42. Kf3 {[%clk 0:01:07.2]} 42... Rg3+ {[%clk
0:00:38.5]} 43. Ke4 {[%clk 0:01:07.5]} 43... h4 {[%clk 0:00:37.1]} 44. Kd5
{[%clk 0:01:06.7]} 44... Rd3+ {[%clk 0:00:21.3]} 45. Ke6 {[%clk 0:01:06.2]}
45... Rd8 {[%clk 0:00:20.7]} 46. Kf6 {[%clk 0:01:04.9]} 46... Kh7 {[%clk
0:00:20.5]} 47. Ra7+ {[%clk 0:01:03.6]} 47... Kh6 {[%clk 0:00:19.8]} 48. Ra3
{[%clk 0:00:59]} 48... Kh5 {[%clk 0:00:18.9]} 49. Kf7 {[%clk 0:00:56.2]} 49...
Rd7+ {[%clk 0:00:18.8]} 50. Ke6 {[%clk 0:00:56.2]} 50... Rb7 {[%clk 0:00:18.6]}
51. Kf6 {[%clk 0:00:56.5]} 51... Rb6+ {[%clk 0:00:18.8]} 52. Kf7 {[%clk
0:00:56.9]} 52... Kg4 {[%clk 0:00:19.3]} 53. Bf6 {[%clk 0:00:56.8]} 53... h3
{[%clk 0:00:19.2]} 54. Kxg6 {[%clk 0:00:51.1]} 54... h2 {[%clk 0:00:19.6]} 55.
Ra1 {[%clk 0:00:51.4]} 55... Ng3 {[%clk 0:00:19.9]} 56. f5 {[%clk 0:00:50.2]}
56... h1=Q {[%clk 0:00:17.5]} 57. Ra4+ {[%clk 0:00:48.7]} 57... Ne4 {[%clk
0:00:16.3]} 58. Rxe4+ {[%clk 0:00:48.2]} 58... Qxe4 {[%clk 0:00:15.7]} 0-1

[Event "Late-Titled-Tuesday-Blitz-March-05-2024"]
[Site "Chess.com"]
[Date "2024.03.05"]
[Round "2"]
[White "Hudijegszid"]
[Black "Airquake"]
[Result "1-0"]
[WhiteElo "2353"]
[BlackElo "2658"]
[TimeControl "180+1"]
[EndTime "14:18:13 PST"]
[Termination "Hudijegszid won on time"]

1. e4 {[%clk 0:03:00.9]} 1... c5 {[%clk 0:02:50.1]} 2. Nf3 {[%clk 0:02:59]} 2...
d6 {[%clk 0:02:50.1]} 3. Nc3 {[%clk 0:02:57.8]} 3... Nf6 {[%clk 0:02:49.4]} 4.
e5 {[%clk 0:02:57.8]} 4... dxe5 {[%clk 0:02:49.1]} 5. Nxe5 {[%clk 0:02:58.7]}
5... e6 {[%clk 0:02:49.7]} 6. Bb5+ {[%clk 0:02:50.3]} 6... Nbd7 {[%clk
0:02:48.9]} 7. d4 {[%clk 0:02:49.5]} 7... a6 {[%clk 0:02:45.1]} 8. Bxd7+ {[%clk
0:02:48.6]} 8... Nxd7 {[%clk 0:02:44.6]} 9. Qf3 {[%clk 0:02:47.8]} 9... Qf6
{[%clk 0:02:40.2]} 10. Bf4 {[%clk 0:02:36.3]} 10... cxd4 {[%clk 0:02:37.4]} 11.
Ne4 {[%clk 0:02:31.1]} 11... Qf5 {[%clk 0:02:26.9]} 12. Nc4 {[%clk 0:01:52.7]}
12... Qd5 {[%clk 0:01:51.2]} 13. Ned6+ {[%clk 0:01:47.7]} 13... Bxd6 {[%clk
0:01:51]} 14. Nxd6+ {[%clk 0:01:46.6]} 14... Kf8 {[%clk 0:01:37.1]} 15. Qxd5
{[%clk 0:01:47.5]} 15... exd5 {[%clk 0:01:37.7]} 16. O-O-O {[%clk 0:01:35.2]}
16... Nf6 {[%clk 0:01:32.9]} 17. Rhe1 {[%clk 0:01:23.8]} 17... b5 {[%clk
0:01:31.6]} 18. Nxc8 {[%clk 0:01:07.8]} 18... Rxc8 {[%clk 0:01:31]} 19. Rxd4
{[%clk 0:01:08.7]} 19... Re8 {[%clk 0:01:08.2]} 20. Bd6+ {[%clk 0:01:05.2]}
20... Kg8 {[%clk 0:01:06.5]} 21. Rxe8+ {[%clk 0:01:06]} 21... Nxe8 {[%clk
0:01:07.1]} 22. Rxd5 {[%clk 0:01:06.2]} 22... f6 {[%clk 0:01:07.1]} 23. Bf4
{[%clk 0:01:04.6]} 23... Kf7 {[%clk 0:01:05.9]} 24. Rd7+ {[%clk 0:01:04]} 24...
Kg6 {[%clk 0:00:50.1]} 25. Ra7 {[%clk 0:01:01.6]} 25... h5 {[%clk 0:00:44.9]}
26. Rxa6 {[%clk 0:00:59.6]} 26... Kf5 {[%clk 0:00:45.3]} 27. Be3 {[%clk
0:00:53.2]} 27... Nc7 {[%clk 0:00:45.3]} 28. Rc6 {[%clk 0:00:52.4]} 28... Ne6
{[%clk 0:00:44.8]} 29. Rb6 {[%clk 0:00:51.3]} 29... g5 {[%clk 0:00:29.2]} 30.
Rxb5+ {[%clk 0:00:50.8]} 30... Ke4 {[%clk 0:00:29.6]} 31. Kd2 {[%clk 0:00:47]}
31... g4 {[%clk 0:00:13]} 32. Ke2 {[%clk 0:00:46.8]} 32... Nf4+ {[%clk
0:00:05.7]} 33. Bxf4 {[%clk 0:00:47.2]} 33... Kxf4 {[%clk 0:00:06.6]} 34. a4
{[%clk 0:00:45.4]} 34... Rc8 {[%clk 0:00:06]} 35. c3 {[%clk 0:00:45.3]} 35... h4
{[%clk 0:00:06.3]} 36. a5 {[%clk 0:00:45.1]} 36... Re8+ {[%clk 0:00:04.7]} 37.
Kd2 {[%clk 0:00:38.1]} 37... Rd8+ {[%clk 0:00:04.9]} 38. Kc2 {[%clk 0:00:38]}
38... f5 {[%clk 0:00:03.4]} 39. Rb4+ {[%clk 0:00:36.7]} 39... Kg5 {[%clk
0:00:02.7]} 40. Rd4 {[%clk 0:00:37.6]} 40... Ra8 {[%clk 0:00:02.1]} 41. b4
{[%clk 0:00:38]} 41... f4 {[%clk 0:00:03]} 42. Rd5+ {[%clk 0:00:36.3]} 42... Kf6
{[%clk 0:00:03.4]} 43. g3 {[%clk 0:00:33.7]} 43... fxg3 {[%clk 0:00:01.4]} 44.
fxg3 {[%clk 0:00:33.3]} 44... h3 {[%clk 0:00:02.3]} 45. c4 {[%clk 0:00:31.2]}
45... Re8 {[%clk 0:00:02]} 46. a6 {[%clk 0:00:27.8]} 46... Re2+ {[%clk
0:00:01.6]} 47. Kd3 {[%clk 0:00:28.4]} 47... Rxh2 {[%clk 0:00:01.7]} 48. a7
{[%clk 0:00:27.4]} 48... Ra2 {[%clk 0:00:01.8]} 49. Ra5 {[%clk 0:00:27.4]} 49...
h2 {[%clk 0:00:02.2]} 50. a8=Q {[%clk 0:00:26.9]} 1-0

[Event "Late-Titled-Tuesday-Blitz-March-05-2024"]
[Site "Chess.com"]
[Date "2024.03.05"]
[Round "2"]
[White "NoHeThTo"]
[Black "Azerichess"]
[Result "0-1"]
[WhiteElo "2641"]
[BlackElo "3051"]
[TimeControl "180+1"]
[EndTime "14:18:16 PST"]
[Termination "Azerichess won by checkmate"]

1. d4 {[%clk 0:02:57.4]} 1... Nf6 {[%clk 0:02:59.9]} 2. Nc3 {[%clk 0:02:56.6]}
2... d5 {[%clk 0:02:58.7]} 3. Bf4 {[%clk 0:02:56.1]} 3... a6 {[%clk 0:02:56]} 4.
e3 {[%clk 0:02:55.6]} 4... Bf5 {[%clk 0:02:53.3]} 5. f3 {[%clk 0:02:54.9]} 5...
e6 {[%clk 0:02:48.7]} 6. g4 {[%clk 0:02:53]} 6... Bg6 {[%clk 0:02:48.6]} 7. h4
{[%clk 0:02:53.3]} 7... h5 {[%clk 0:02:47.4]} 8. g5 {[%clk 0:02:52.5]} 8... Ng8
{[%clk 0:02:47.9]} 9. Bd3 {[%clk 0:02:51.7]} 9... Ne7 {[%clk 0:02:47.3]} 10.
Nge2 {[%clk 0:02:44.5]} 10... Nd7 {[%clk 0:02:47.1]} 11. a3 {[%clk 0:02:28.5]}
11... c5 {[%clk 0:02:45.5]} 12. dxc5 {[%clk 0:02:26.3]} 12... Nxc5 {[%clk
0:02:44.1]} 13. Bxg6 {[%clk 0:02:23.6]} 13... Nxg6 {[%clk 0:02:45]} 14. Qd4
{[%clk 0:02:20.8]} 14... e5 {[%clk 0:02:34.5]} 15. Bxe5 {[%clk 0:02:03.6]} 15...
Ne6 {[%clk 0:02:34.7]} 16. Qxd5 {[%clk 0:01:47.2]} 16... Qxd5 {[%clk 0:02:33.5]}
17. Nxd5 {[%clk 0:01:48.1]} 17... Nxe5 {[%clk 0:02:34]} 18. f4 {[%clk
0:01:48.6]} 18... O-O-O {[%clk 0:02:16.7]} 19. O-O-O {[%clk 0:01:43.3]} 19...
Ng4 {[%clk 0:02:11.1]} 20. Nb6+ {[%clk 0:01:35.5]} 20... Kc7 {[%clk 0:02:10.8]}
21. Rxd8 {[%clk 0:01:35.9]} 21... Nxd8 {[%clk 0:02:05.7]} 22. Nd5+ {[%clk
0:01:35.4]} 22... Kc6 {[%clk 0:02:03.5]} 23. Rd1 {[%clk 0:01:34.9]} 23... Bc5
{[%clk 0:02:03.8]} 24. e4 {[%clk 0:01:19.5]} 24... Nf2 {[%clk 0:02:03]} 25. Nd4+
{[%clk 0:01:13.1]} 25... Kd7 {[%clk 0:01:49.1]} 26. Nb3 {[%clk 0:01:09.8]} 26...
Nxd1 {[%clk 0:01:19.2]} 27. Nxc5+ {[%clk 0:01:08.5]} 27... Kd6 {[%clk
0:01:19.6]} 28. Nd3 {[%clk 0:01:08]} 28... Re8 {[%clk 0:01:18.9]} 29. Kxd1
{[%clk 0:01:04.3]} 29... Rxe4 {[%clk 0:01:19.2]} 30. Nc3 {[%clk 0:01:04.2]}
30... Re8 {[%clk 0:01:19.3]} 31. Kd2 {[%clk 0:00:56.4]} 31... Nc6 {[%clk
0:01:17.5]} 32. Ne2 {[%clk 0:00:49.8]} 32... Ne7 {[%clk 0:01:15.3]} 33. Nd4
{[%clk 0:00:44]} 33... Kd5 {[%clk 0:01:07.5]} 34. c3 {[%clk 0:00:38.6]} 34...
Ke4 {[%clk 0:01:04.7]} 35. Ne5 {[%clk 0:00:31.8]} 35... Kxf4 {[%clk 0:00:44.5]}
36. Nxf7 {[%clk 0:00:28.1]} 36... Ng6 {[%clk 0:00:43.6]} 37. Nd6 {[%clk
0:00:26.5]} 37... Re7 {[%clk 0:00:42.3]} 38. Nc8 {[%clk 0:00:20.5]} 38... Rd7
{[%clk 0:00:38.7]} 39. Nb6 {[%clk 0:00:20.4]} 39... Rd8 {[%clk 0:00:36.6]} 40.
Ke2 {[%clk 0:00:19.2]} 40... Kg4 {[%clk 0:00:36.1]} 41. Kf2 {[%clk 0:00:15.5]}
41... Nxh4 {[%clk 0:00:35.1]} 42. Nc4 {[%clk 0:00:15]} 42... Rf8+ {[%clk
0:00:30.3]} 43. Ke2 {[%clk 0:00:15.3]} 43... Re8+ {[%clk 0:00:30.5]} 44. Kf2
{[%clk 0:00:14.5]} 44... Nf5 {[%clk 0:00:29.2]} 45. Nxf5 {[%clk 0:00:13.5]}
45... Rf8 {[%clk 0:00:25.7]} 46. Ne3+ {[%clk 0:00:12.4]} 46... Kxg5 {[%clk
0:00:25.8]} 47. Kg3 {[%clk 0:00:12.5]} 47... Rxf5 {[%clk 0:00:26.3]} 48. Nxf5
{[%clk 0:00:12.7]} 48... Kxf5 {[%clk 0:00:27.2]} 49. Kh4 {[%clk 0:00:13.5]}
49... g5+ {[%clk 0:00:26]} 50. Kg3 {[%clk 0:00:10.8]} 50... h4+ {[%clk
0:00:25.9]} 51. Kh3 {[%clk 0:00:11.1]} 51... Kf4 {[%clk 0:00:26.3]} 52. c4
{[%clk 0:00:10.8]} 52... g4+ {[%clk 0:00:27.2]} 53. Kxh4 {[%clk 0:00:11]} 53...
g3 {[%clk 0:00:27.8]} 54. b4 {[%clk 0:00:11.9]} 54... g2 {[%clk 0:00:27.6]} 55.
c5 {[%clk 0:00:12.8]} 55... g1=Q {[%clk 0:00:26.4]} 56. c6 {[%clk 0:00:13.7]}
56... Qg4# {[%clk 0:00:26]} 0-1